bitfinex/quotes_BTCUSD_20221001
["timestamp","ask_amount","ask_price","bid_price","bid_amount"]
[1664635556891,3.09001726,19311.0,19310.0,0.079]
[1664635557111,3.09001726,19311.0,19309.0,0.25908]
[1664635557330,1.497392,19310.0,19309.0,0.25908]
[1664635557562,1.50271623,19310.0,19309.0,0.25908]
[1664635557782,1.50271623,19310.0,19309.0,0.33808]
[1664635559151,1.50271623,19310.0,19309.0,0.25908]
[1664635559902,1.50271623,19310.0,19309.0,0.33800405]
[1664635561268,1.50271623,19310.0,19309.0,0.25900405]
[1664635561931,1.50271623,19310.0,19309.0,0.33800405]
[1664635562988,1.14482323,19310.0,19309.0,0.33800405]
[1664635563206,1.95069673,19310.0,19309.0,0.25900405]
[1664635563933,1.95069673,19310.0,19309.0,0.33800405]
[1664635565276,1.95069673,19310.0,19309.0,0.25900405]
[1664635565484,1.50271623,19310.0,19309.0,0.25900405]
[1664635565704,1.95069673,19310.0,19309.0,0.25900405]
[1664635565926,1.95069673,19310.0,19309.0,0.33800405]
[1664635566151,1.50271623,19310.0,19309.0,0.33800405]
[1664635566370,1.95069673,19310.0,19309.0,0.33800405]
[1664635567214,1.95069673,19310.0,19309.0,0.25900405]
[1664635567955,1.95069673,19310.0,19309.0,0.33800405]
[1664635568892,1.95069673,19310.0,19309.0,0.079]
[1664635569108,2.97839307,19310.0,19308.0,0.129553]
[1664635569343,1.57536016,19309.0,19308.0,0.129553]
[1664635569568,1.57536016,19309.0,19307.0,0.129554]
[1664635569569,1.94137785,19309.0,19307.0,0.129554]
[1664635569787,1.66760494,19308.0,19307.0,0.129554]
[1664635570038,1.87448101,19308.0,19307.0,0.129554]
[1664635570696,1.87448101,19308.0,19306.0,0.25913]
[1664635570915,0.86962444,19307.0,19306.0,0.25913]
[1664635571143,1.16962444,19307.0,19306.0,0.25913]
[1664635571871,1.16962444,19307.0,19306.0,0.33813]
[1664635571872,0.81173144,19307.0,19306.0,0.33813]
[1664635572093,1.16962444,19307.0,19306.0,0.33813]
[1664635572313,1.38222458,19307.0,19306.0,0.208564]
[1664635572549,1.83552931,19307.0,19306.0,0.079]
[1664635572783,2.74193431,19307.0,19306.0,0.079]
[1664635573260,2.74193431,19307.0,19304.0,0.129579]
[1664635573482,0.05,19305.0,19304.0,0.129579]
[1664635573705,0.56173144,19305.0,19304.0,0.129579]
[1664635573943,1.21962444,19305.0,19304.0,0.208579]
[1664635574168,1.21962444,19305.0,19304.0,0.213579]
[1664635574169,1.22494867,19305.0,19304.0,0.213579]
[1664635574865,1.43809044,19305.0,19304.0,0.084]
[1664635575083,2.34459044,19305.0,19304.0,0.005]
[1664635576071,2.34459044,19305.0,19304.0,0.084]
[1664635577025,2.79997094,19305.0,19304.0,0.084]
[1664635577256,2.79997094,19305.0,19304.0,0.005]
[1664635577937,2.79997094,19305.0,19304.0,0.084]
[1664635577938,2.83089508,19305.0,19304.0,0.084]
[1664635578189,2.78089508,19305.0,19304.0,0.084]
[1664635579165,2.74997094,19305.0,19304.0,0.005]
[1664635580078,2.74997094,19305.0,19304.0,0.083]
[1664635580551,3.00997094,19305.0,19304.0,0.083]
[1664635580786,2.56199044,19305.0,19304.0,0.083]
[1664635581021,3.00997094,19305.0,19304.0,0.083]
[1664635581248,3.00997094,19305.0,19304.0,0.005]
[1664635581727,3.00997094,19305.0,19304.0,0.00493142]
[1664635581952,3.00997094,19305.0,19304.0,0.08293142]
[1664635583338,3.00997094,19305.0,19304.0,0.00493142]
[1664635584010,3.00997094,19305.0,19304.0,0.08293142]
[1664635584288,3.00997094,19305.0,19304.0,0.078]
[1664635585637,3.00997094,19305.0,19302.0,0.330692]
[1664635585638,2.65207794,19305.0,19302.0,0.330692]
[1664635585878,1.55033306,19304.0,19302.0,0.330692]
[1664635586102,1.91160494,19303.0,19302.0,0.2011]
[1664635586342,2.16160494,19303.0,19302.0,0.2011]
[1664635586566,2.16900494,19303.0,19302.0,0.2011]
[1664635586826,2.53126276,19303.0,19302.0,0.2011]
[1664635587290,2.91493637,19303.0,19302.0,0.2011]
[1664635587520,2.9202606,19303.0,19302.0,0.2011]
[1664635587954,2.4742801,19303.0,19302.0,0.2511]
[1664635589354,2.4722801,19303.0,19302.0,0.2011]
[1664635590011,2.4742801,19303.0,19302.0,0.2511]
[1664635590466,1.9302801,19303.0,19302.0,0.2511]
[1664635591008,0.51905567,19303.0,19302.0,0.2461]
[1664635591254,0.51905567,19303.0,19302.0,0.1961]
[1664635591255,1.42364967,19303.0,19302.0,0.1961]
[1664635591468,1.78154267,19303.0,19302.0,0.1961]
[1664635591699,1.42364967,19303.0,19302.0,0.1961]
[1664635591940,1.78154267,19303.0,19302.0,0.1961]
[1664635592168,1.79954267,19303.0,19302.0,0.2711]
[1664635592397,2.09954267,19303.0,19302.0,0.2711]
[1664635593314,2.08154267,19303.0,19302.0,0.1961]
[1664635593547,1.20559567,19303.0,19302.0,0.1961]
[1664635593764,1.26348867,19303.0,19302.0,0.1961]
[1664635593992,1.26348867,19303.0,19302.0,0.2741]
[1664635594219,1.56348867,19303.0,19302.0,0.2741]
[1664635594644,1.00446167,19303.0,19302.0,0.2741]
[1664635594903,0.87494867,19303.0,19302.0,0.2741]
[1664635595113,0.51705567,19303.0,19302.0,0.7220805]
[1664635595278,0.51705567,19303.0,19302.0,0.1961]
[1664635595666,0.87494867,19303.0,19302.0,0.1961]
[1664635595878,1.00446167,19303.0,19302.0,0.1961]
[1664635596112,1.00446167,19303.0,19302.0,0.2751]
[1664635596325,1.30446167,19303.0,19302.0,0.2751]
[1664635596556,1.00446167,19303.0,19302.0,0.2751]
[1664635596787,1.30446167,19303.0,19302.0,0.2751]
[1664635596952,1.00446167,19303.0,19302.0,0.2751]
[1664635597171,1.30446167,19303.0,19302.0,0.1911]
[1664635597359,1.00446167,19303.0,19302.0,0.1911]
[1664635597974,1.00446167,19303.0,19302.0,0.2701]
[1664635598665,1.00438774,19303.0,19302.0,0.2701]
[1664635599341,1.00438774,19303.0,19302.0,0.1911]
[1664635600066,1.00438774,19303.0,19302.0,0.2701]
[1664635601406,1.00438774,19303.0,19302.0,0.1911]
[1664635602138,1.00438774,19303.0,19302.0,0.2701]
[1664635602822,0.64649474,19303.0,19302.0,0.2701]
[1664635603018,1.00438774,19303.0,19302.0,0.2701]
[1664635603170,1.30438774,19303.0,19302.0,0.1911]
[1664635603611,1.00438774,19303.0,19302.0,0.1911]
[1664635603895,1.56341474,19303.0,19302.0,0.1911]
[1664635604120,1.56341474,19303.0,19302.0,0.2701]
[1664635604543,0.90552174,19303.0,19302.0,0.2701]
[1664635604883,1.00438774,19303.0,19302.0,0.2701]
[1664635605755,1.00438774,19303.0,19302.0,0.1911]
[1664635606010,1.00438774,19303.0,19302.0,0.2701]
[1664635606694,0.64649474,19303.0,19302.0,0.2701]
[1664635606905,1.00438774,19303.0,19302.0,0.2701]
[1664635607122,0.64649474,19303.0,19302.0,0.1911]
[1664635607390,0.51698174,19303.0,19302.0,0.1911]
[1664635608052,0.51698174,19303.0,19302.0,0.2701]
[1664635609151,0.51698174,19303.0,19302.0,0.1911]
[1664635609366,0.87487474,19303.0,19302.0,0.1911]
[1664635609577,0.51698174,19303.0,19302.0,0.1911]
[1664635610102,0.87487474,19303.0,19302.0,0.2701]
[1664635610336,0.64649474,19303.0,19302.0,0.2701]
[1664635611323,0.64649474,19303.0,19302.0,0.1911]
[1664635612055,0.94649474,19303.0,19302.0,0.2701]
[1664635612294,1.00438774,19303.0,19302.0,0.2701]
[1664635612513,0.51698174,19303.0,19302.0,0.2701]
[1664635613002,0.51698174,19303.0,19302.0,0.3601]
[1664635613199,0.87487474,19303.0,19302.0,0.3601]
[1664635613420,0.51698174,19303.0,19302.0,0.2811]
[1664635614146,0.00532423,19303.0,19302.0,0.4101]
[1664635614367,0.00532423,19303.0,19302.0,0.4601]
[1664635614844,0.00532423,19303.0,19302.0,0.4101]
[1664635615059,0.36321723,19303.0,19302.0,0.4101]
[1664635615282,0.00532423,19303.0,19302.0,0.3811]
[1664635615427,0.00532423,19303.0,19302.0,0.8290805]
[1664635615660,0.00532423,19303.0,19302.0,0.9586005]
[1664635616149,0.00532423,19303.0,19302.0,1.0376005]
[1664635617001,0.00532423,19303.0,19302.0,1.2966405]
[1664635617374,0.00532423,19303.0,19302.0,1.2176405]
[1664635617638,0.00480075,19303.0,19302.0,1.2176405]
[1664635618082,0.00480075,19303.0,19302.0,1.2966405]
[1664635619329,0.00480075,19303.0,19302.0,1.2176405]
[1664635619972,0.00480075,19303.0,19302.0,1.2966405]
[1664635620347,0.00480075,19303.0,19302.0,0.48962]
[1664635620566,0.00480075,19303.0,19302.0,0.3601]
[1664635621434,0.00480075,19303.0,19302.0,0.2811]
[1664635621621,0.00480075,19303.0,19302.0,0.3811]
[1664635622045,0.00480075,19303.0,19302.0,0.4601]
[1664635623456,0.00480075,19303.0,19302.0,0.3811]
[1664635623880,0.00480075,19303.0,19302.0,0.8290805]
[1664635624095,0.00480075,19303.0,19302.0,0.4601]
[1664635624518,0.00480075,19303.0,19302.0,2.87859207]
[1664635625265,0.00480075,19303.0,19302.0,0.4101]
[1664635625703,0.00480075,19303.0,19302.0,0.3811]
[1664635626143,0.00480075,19303.0,19302.0,0.4601]
[1664635627381,0.00480075,19303.0,19302.0,0.3811]
[1664635627829,0.00480075,19303.0,19302.0,0.3311]
[1664635627973,0.00480075,19303.0,19302.0,0.3811]
[1664635628184,0.00480075,19303.0,19302.0,0.4601]
[1664635629337,0.00480075,19303.0,19302.0,0.3811]
[1664635630338,0.00480075,19303.0,19302.0,0.4601]
[1664635631420,0.00480075,19303.0,19302.0,0.3811]
[1664635632127,0.00480075,19303.0,19302.0,0.38475051]
[1664635632344,0.00480075,19303.0,19302.0,0.46375051]
[1664635633445,0.00480075,19303.0,19302.0,0.38475051]
[1664635633898,0.00454331,19303.0,19302.0,0.38475051]
[1664635634342,0.00454331,19303.0,19302.0,0.46375051]
[1664635635451,0.00454331,19303.0,19302.0,0.38475051]
[1664635636387,0.00454331,19303.0,19302.0,0.46375051]
[1664635637543,0.00454331,19303.0,19302.0,0.38475051]
[1664635638238,0.00454331,19303.0,19302.0,0.46375051]
[1664635639585,0.00454331,19303.0,19302.0,0.38475051]
[1664635639809,0.00454331,19303.0,19302.0,0.51427051]
[1664635640172,0.00454331,19303.0,19302.0,0.59327051]
[1664635640924,0.00454331,19303.0,19302.0,0.59422649]
[1664635641492,0.00454331,19303.0,19302.0,0.51522649]
[1664635641703,0.00454331,19303.0,19302.0,0.77426649]
[1664635641920,0.00352743,19303.0,19302.0,0.77426649]
[1664635642135,0.00352743,19303.0,19302.0,0.85326649]
[1664635643669,0.00352743,19303.0,19302.0,0.77426649]
[1664635644261,0.00352743,19303.0,19302.0,0.85326649]
[1664635644957,0.00352743,19303.0,19302.0,1.37134749]
[1664635645410,0.00352743,19303.0,19302.0,1.29234749]
[1664635645907,7.43e-06,19303.0,19302.0,3.37562071]
[1664635646141,7.43e-06,19303.0,19302.0,5.36800214]
[1664635646369,7.43e-06,19303.0,19302.0,5.49581528]
[1664635646601,7.43e-06,19303.0,19302.0,5.37403231]
[1664635646822,7.43e-06,19303.0,19302.0,5.84581528]
[1664635647278,0.26,19305.0,19304.0,0.20282246]
[1664635647503,0.26,19305.0,19304.0,2.15132926]
[1664635647742,0.26,19305.0,19304.0,5.65551393]
[1664635648268,0.26,19305.0,19304.0,6.17097754]
[1664635649494,0.26,19305.0,19304.0,6.09097754]
[1664635649953,0.26,19305.0,19304.0,6.03918754]
[1664635650396,0.26,19305.0,19304.0,6.07860268]
[1664635650880,0.26,19305.0,19304.0,6.11918754]
[1664635651102,0.26,19305.0,19304.0,6.18006483]
[1664635651325,0.26,19305.0,19304.0,6.11918754]
[1664635651556,0.26,19305.0,19304.0,6.03918754]
[1664635652324,0.26,19305.0,19304.0,6.11918754]
[1664635653466,0.26,19305.0,19304.0,6.07860268]
[1664635653728,0.26,19305.0,19304.0,6.03918754]
[1664635653980,0.26,19305.0,19304.0,6.09097754]
[1664635654424,0.26,19305.0,19304.0,6.17097754]
[1664635654653,0.26,19305.0,19304.0,6.13039268]
[1664635655295,0.26,19305.0,19304.0,6.17097754]
[1664635655620,0.26,19305.0,19304.0,6.13039268]
[1664635655890,0.26,19305.0,19304.0,6.09097754]
[1664635656332,0.26,19305.0,19304.0,6.13039268]
[1664635656548,0.26,19305.0,19304.0,6.17097754]
[1664635657016,0.26,19305.0,19304.0,6.47097754]
[1664635657237,0.26,19305.0,19304.0,6.45961921]
[1664635657466,0.26,19305.0,19304.0,6.45961948]
[1664635657697,0.26,19305.0,19304.0,6.37961948]
[1664635658146,0.26,19305.0,19304.0,7.23101948]
[1664635658387,0.26,19305.0,19304.0,6.72237754]
[1664635658846,0.26,19305.0,19304.0,6.78325483]
[1664635659087,0.26,19305.0,19304.0,7.02237754]
[1664635659324,0.26,19305.0,19304.0,6.72237754]
[1664635659595,0.26,19305.0,19304.0,6.64237754]
[1664635659794,0.26,19305.0,19304.0,6.94237754]
[1664635660266,0.26,19305.0,19304.0,7.02237754]
[1664635660505,0.26,19305.0,19304.0,6.78325483]
[1664635660723,0.26,19305.0,19304.0,6.72237754]
[1664635661582,0.26,19305.0,19304.0,6.94237754]
[1664635661813,0.26,19305.0,19304.0,6.64237754]
[1664635662043,0.26,19305.0,19304.0,6.26218101]
[1664635662241,0.26,19305.0,19304.0,6.34218101]
[1664635662694,0.26,19305.0,19304.0,6.38276587]
[1664635662919,0.26,19305.0,19304.0,6.34218101]
[1664635663485,0.26,19305.0,19304.0,6.26218101]
[1664635664389,0.26,19305.0,19304.0,6.34218101]
[1664635665576,0.26,19305.0,19304.0,6.26218101]
[1664635666487,0.26,19305.0,19304.0,6.34218101]
[1664635667122,0.26,19305.0,19304.0,5.69639101]
[1664635667478,0.26,19305.0,19304.0,2.10630444]
[1664635667688,0.26,19305.0,19304.0,2.02630444]
[1664635668116,0.25992361,19305.0,19304.0,2.02630444]
[1664635668237,0.25992361,19305.0,19304.0,2.10630444]
[1664635668482,0.25992361,19305.0,19304.0,2.55428494]
[1664635668697,0.25992361,19305.0,19304.0,2.10630444]
[1664635668916,0.25992361,19305.0,19304.0,1.17025044]
[1664635670001,0.25992361,19305.0,19304.0,1.09025044]
[1664635670218,0.25992361,19305.0,19304.0,1.17025044]
[1664635670699,0.25992361,19305.0,19304.0,1.61823094]
[1664635671062,0.25992361,19305.0,19304.0,1.17025044]
[1664635671703,0.25992361,19305.0,19304.0,1.09025044]
[1664635672284,0.25992361,19305.0,19304.0,1.17025044]
[1664635673562,0.25992361,19305.0,19304.0,1.09025044]
[1664635674487,0.25992361,19305.0,19304.0,1.17025044]
[1664635675642,0.25992361,19305.0,19304.0,1.09025044]
[1664635676409,0.25992361,19305.0,19304.0,1.17025044]
[1664635677738,0.25992361,19305.0,19304.0,0.83123744]
[1664635678394,0.25992361,19305.0,19304.0,0.91123744]
[1664635679294,0.26260719,19305.0,19304.0,0.91123744]
[1664635679766,0.26260719,19305.0,19304.0,2.05625794]
[1664635680419,0.26260719,19305.0,19304.0,2.13625794]
[1664635681723,0.26260719,19305.0,19304.0,2.05625794]
[1664635682280,0.26260719,19305.0,19304.0,2.13625794]
[1664635682515,0.26260719,19305.0,19304.0,2.1768428]
[1664635683178,0.26260719,19305.0,19304.0,1.7288623]
[1664635683402,0.26260719,19305.0,19304.0,1.68827744]
[1664635683698,0.26260719,19305.0,19304.0,1.60827744]
[1664635684131,0.26260719,19305.0,19304.0,2.05625794]
[1664635684355,0.26260719,19305.0,19304.0,2.13625794]
[1664635684575,0.26260719,19305.0,19304.0,2.1768428]
[1664635684885,0.26260719,19305.0,19304.0,2.13625794]
[1664635685099,0.26260719,19305.0,19304.0,2.1768428]
[1664635685311,0.26260719,19305.0,19304.0,2.13625794]
[1664635685749,0.26260719,19305.0,19304.0,2.0968428]
[1664635685903,0.26260719,19305.0,19304.0,1.60827744]
[1664635686117,0.26260719,19305.0,19304.0,2.05625794]
[1664635686345,0.26260719,19305.0,19304.0,1.68827744]
[1664635687030,0.26260719,19305.0,19304.0,1.7288623]
[1664635687706,0.26260719,19305.0,19304.0,1.70973959]
[1664635687924,0.26260719,19305.0,19304.0,1.6488623]
[1664635688056,0.26260719,19305.0,19304.0,1.70973959]
[1664635688270,0.2625018,19305.0,19304.0,1.78973959]
[1664635688480,0.2625018,19305.0,19304.0,1.7288623]
[1664635689212,0.2625018,19305.0,19304.0,1.78973959]
[1664635690253,0.2625018,19305.0,19304.0,2.01774818]
[1664635690461,0.2625018,19305.0,19304.0,1.78973959]
[1664635690671,0.2625018,19305.0,19304.0,2.01774796]
[1664635691555,0.2625018,19305.0,19304.0,1.93774796]
[1664635692480,0.2625018,19305.0,19304.0,2.01774796]
[1664635693927,0.2625018,19305.0,19304.0,2.38572846]
[1664635694437,0.2625018,19305.0,19304.0,2.01774796]
[1664635695060,0.2625018,19305.0,19304.0,1.7288623]
[1664635695687,0.2625018,19305.0,19304.0,1.6488623]
[1664635696423,0.2625018,19305.0,19304.0,1.60827744]
[1664635696618,0.2625018,19305.0,19304.0,0.558519]
[1664635696831,0.2625018,19305.0,19304.0,0.17]
[1664635697901,0.2625018,19305.0,19304.0,0.19]
[1664635698555,0.2625018,19305.0,19304.0,0.27]
[1664635700095,0.2625018,19305.0,19304.0,0.19]
[1664635700531,0.2625018,19305.0,19304.0,0.269]
[1664635700971,0.2625018,19305.0,19304.0,0.398506]
[1664635701714,0.2625018,19305.0,19304.0,0.657519]
[1664635702159,0.2625018,19305.0,19304.0,0.578519]
[1664635702597,0.2625018,19305.0,19304.0,0.658519]
[1664635703626,0.2625018,19305.0,19304.0,0.578519]
[1664635704339,0.2625018,19305.0,19304.0,0.577635]
[1664635704517,0.2625018,19305.0,19304.0,0.657635]
[1664635705572,0.2625018,19305.0,19304.0,0.577635]
[1664635706438,0.2625018,19305.0,19304.0,0.656635]
[1664635707775,0.2625018,19305.0,19304.0,0.61821986]
[1664635708449,0.2625018,19305.0,19304.0,0.69821986]
[1664635709613,0.2625018,19305.0,19304.0,0.61821986]
[1664635710477,0.2625018,19305.0,19304.0,0.656635]
[1664635711140,0.2625018,19305.0,19304.0,0.69721986]
[1664635711801,0.26240237,19305.0,19304.0,0.67909715]
[1664635712012,0.26240237,19305.0,19304.0,0.61821986]
[1664635712690,0.26240237,19305.0,19304.0,0.69721986]
[1664635713193,0.26240237,19305.0,19304.0,0.75809715]
[1664635713842,0.26240237,19305.0,19304.0,0.61821986]
[1664635714529,0.26240237,19305.0,19304.0,0.75809715]
[1664635714730,0.26240237,19305.0,19304.0,1.27612415]
[1664635715499,0.26240237,19305.0,19304.0,1.21524686]
[1664635715731,0.26240237,19305.0,19304.0,1.13624686]
[1664635716315,0.26240237,19305.0,19304.0,1.18803686]
[1664635716531,0.26240237,19305.0,19304.0,1.32791415]
[1664635716835,0.26240237,19305.0,19304.0,1.5564911]
[1664635717366,0.26240237,19305.0,19304.0,1.5047011]
[1664635717582,0.26240237,19305.0,19304.0,1.21524686]
[1664635717797,0.26240237,19305.0,19304.0,1.42569868]
[1664635718644,0.26240237,19305.0,19304.0,1.50469868]
[1664635718855,0.26240237,19305.0,19304.0,1.27612415]
[1664635719836,0.26240237,19305.0,19304.0,1.19712415]
[1664635720606,0.26240237,19305.0,19304.0,1.27612415]
[1664635721054,0.26240237,19305.0,19304.0,1.5036248]
[1664635721483,0.26240237,19305.0,19304.0,1.50362761]
[1664635722072,0.26240237,19305.0,19304.0,2.05595704]
[1664635722292,1.0493369,19311.0,19307.0,0.09]
[1664635722503,0.9080369,19312.0,19308.0,1.04635]
[1664635722652,0.5777909,19312.0,19308.0,0.19]
[1664635722864,0.388347,19313.0,19310.0,0.09]
[1664635723080,1.14728805,19313.0,19311.0,0.09]
[1664635723331,0.51173144,19313.0,19311.0,0.09]
[1664635723568,0.51173144,19313.0,19311.0,0.478593]
[1664635723782,0.51173144,19313.0,19312.0,0.14]
[1664635724055,0.51173144,19314.0,19312.0,0.14]
[1664635724290,0.51173144,19314.0,19313.0,0.349042]
[1664635724546,0.86962444,19314.0,19313.0,0.349042]
[1664635725876,0.357893,19314.0,19313.0,0.349042]
[1664635726538,0.388303,19315.0,19313.0,0.399042]
[1664635726752,0.357893,19314.0,19313.0,0.428042]
[1664635727883,0.90003444,19315.0,19313.0,0.349042]
[1664635728101,0.05,19314.0,19313.0,0.349042]
[1664635728397,0.617893,19314.0,19313.0,0.399042]
[1664635728619,0.617893,19314.0,19313.0,0.478042]
[1664635729286,0.617893,19314.0,19313.0,0.428042]
[1664635729929,0.617893,19314.0,19313.0,0.349042]
[1664635730555,0.617893,19314.0,19313.0,0.428042]
[1664635730777,0.617893,19314.0,19313.0,0.43213226]
[1664635730954,1.58141718,19314.0,19313.0,0.43213226]
[1664635731330,1.22352418,19314.0,19313.0,0.43213226]
[1664635731549,1.12962444,19314.0,19313.0,0.43213226]
[1664635732000,1.12962444,19314.0,19313.0,0.35313226]
[1664635732274,1.42962444,19314.0,19313.0,0.35313226]
[1664635732729,1.42962444,19314.0,19313.0,0.43213226]
[1664635733380,1.87796134,19314.0,19313.0,0.43213226]
[1664635733601,1.42962444,19314.0,19313.0,0.43213226]
[1664635733819,1.87796134,19314.0,19313.0,0.35313226]
[1664635734270,0.77173144,19314.0,19313.0,0.35313226]
[1664635734505,1.12962444,19314.0,19313.0,0.35313226]
[1664635734751,1.12962444,19314.0,19313.0,0.43213226]
[1664635735912,1.42962444,19314.0,19313.0,0.35313226]
[1664635736595,1.42962444,19314.0,19313.0,0.43213226]
[1664635736831,1.87796134,19314.0,19313.0,0.43213226]
[1664635737317,1.42962444,19314.0,19313.0,0.43213226]
[1664635737878,1.42962444,19314.0,19313.0,0.35313226]
[1664635738551,1.42962444,19314.0,19313.0,0.43213226]
[1664635738929,1.12962444,19314.0,19313.0,0.43213226]
[1664635739168,1.42962444,19314.0,19313.0,0.43213226]
[1664635739385,1.12962444,19314.0,19313.0,0.43213226]
[1664635740046,1.12962444,19314.0,19313.0,0.35313226]
[1664635740259,1.42962444,19314.0,19313.0,0.35313226]
[1664635740723,1.42962444,19314.0,19313.0,0.43213226]
[1664635741130,1.12962444,19314.0,19313.0,0.43213226]
[1664635741938,1.12962444,19314.0,19313.0,0.35313226]
[1664635742690,1.12962444,19314.0,19313.0,0.43213226]
[1664635742900,1.42962444,19314.0,19313.0,0.43213226]
[1664635743965,1.42962444,19314.0,19313.0,0.35313226]
[1664635744180,0.77173144,19314.0,19313.0,0.35313226]
[1664635744399,1.12962444,19314.0,19313.0,0.35305992]
[1664635744606,1.42962444,19314.0,19313.0,0.43205992]
[1664635745054,1.12962444,19314.0,19313.0,0.43205992]
[1664635745694,1.42962444,19314.0,19313.0,0.43205992]
[1664635745927,1.12962444,19314.0,19313.0,0.35305992]
[1664635746710,1.12962444,19314.0,19313.0,0.43205992]
[1664635747892,1.12962444,19314.0,19313.0,0.35305992]
[1664635748580,0.61782112,19314.0,19313.0,0.43205992]
[1664635748808,0.91782112,19314.0,19313.0,0.43205992]
[1664635749924,0.91782112,19314.0,19313.0,0.35305992]
[1664635750713,0.91782112,19314.0,19313.0,0.43205992]
[1664635752590,0.91782112,19314.0,19313.0,0.35305992]
[1664635752806,0.91782112,19314.0,19313.0,0.43205992]
[1664635754054,0.91782112,19314.0,19313.0,0.35305992]
[1664635754827,0.91782112,19314.0,19313.0,0.43205992]
[1664635756070,0.91782112,19314.0,19313.0,0.35305992]
[1664635756735,0.91782112,19314.0,19313.0,0.43205992]
[1664635757504,0.55992812,19314.0,19313.0,0.43205992]
[1664635757719,0.91782112,19314.0,19313.0,0.43205992]
[1664635757957,0.91782112,19314.0,19313.0,0.35305992]
[1664635758843,0.91782112,19314.0,19313.0,0.43205992]
[1664635760022,0.91782112,19314.0,19313.0,0.35305992]
[1664635760893,0.91782112,19314.0,19313.0,0.43205992]
[1664635762024,0.91782112,19314.0,19313.0,0.35305992]
[1664635762973,0.91782112,19314.0,19313.0,0.43205992]
[1664635764320,0.91782112,19314.0,19313.0,0.35305992]
[1664635764763,0.91782112,19314.0,19313.0,0.43205992]
[1664635765984,0.91782112,19314.0,19313.0,0.35305992]
[1664635766808,0.91782112,19314.0,19313.0,0.43205992]
[1664635768063,0.91782112,19314.0,19313.0,0.35305992]
[1664635768961,0.55992812,19314.0,19313.0,0.43205992]
[1664635769189,0.91782112,19314.0,19313.0,0.43205992]
[1664635770066,0.91782112,19314.0,19313.0,0.35305992]
[1664635770807,0.91782112,19314.0,19313.0,0.43205992]
[1664635771179,0.55992812,19314.0,19313.0,0.43205992]
[1664635771399,0.91782112,19314.0,19313.0,0.43205992]
[1664635771622,1.53491223,19314.0,19313.0,0.43205992]
[1664635771953,1.98324913,19314.0,19313.0,0.43205992]
[1664635772162,1.07165956,19314.0,19313.0,0.35305992]
[1664635772344,1.42955256,19314.0,19313.0,0.35305992]
[1664635772745,1.42955256,19314.0,19313.0,0.43205992]
[1664635772985,1.42955256,19314.0,19313.0,0.43198947]
[1664635774180,1.42955256,19314.0,19313.0,0.35298947]
[1664635774811,1.07165956,19314.0,19313.0,0.43198947]
[1664635774935,1.42955256,19314.0,19313.0,0.43198947]
[1664635775404,2.17362391,19314.0,19313.0,0.43198947]
[1664635775584,1.72528701,19314.0,19313.0,0.43198947]
[1664635776018,1.72528701,19314.0,19313.0,0.35298947]
[1664635776939,1.72528701,19314.0,19313.0,0.43198947]
[1664635777300,1.42955256,19314.0,19313.0,0.43198947]
[1664635777528,1.07165956,19314.0,19313.0,0.43198947]
[1664635778055,1.12955256,19314.0,19313.0,0.35298947]
[1664635778243,0.77165956,19314.0,19313.0,0.35298947]
[1664635778877,0.77165956,19314.0,19313.0,0.43198947]
[1664635779217,0.77165956,19314.0,19313.0,0.48198947]
[1664635779670,1.07165956,19314.0,19313.0,0.48198947]
[1664635779928,0.77165956,19314.0,19313.0,0.48198947]
[1664635780141,0.77165956,19314.0,19313.0,0.40298947]
[1664635780572,0.77165956,19314.0,19313.0,0.35298947]
[1664635780573,1.42955256,19314.0,19313.0,0.35298947]
[1664635780932,0.77165956,19314.0,19313.0,0.43198947]
[1664635781410,1.12955256,19314.0,19313.0,0.43198947]
[1664635782069,1.42955256,19314.0,19313.0,0.43198947]
[1664635782280,1.46808138,19314.0,19313.0,0.35298947]
[1664635782460,1.47832879,19314.0,19313.0,0.35298947]
[1664635782892,1.47832879,19314.0,19313.0,0.43198947]
[1664635784031,1.17832879,19314.0,19313.0,0.35298947]
[1664635784807,0.82043579,19314.0,19313.0,0.35298947]
[1664635785018,1.17832879,19314.0,19313.0,0.43198947]
[1664635785639,1.13979997,19314.0,19313.0,0.43198947]
[1664635786105,1.43979997,19314.0,19313.0,0.35298947]
[1664635786954,1.43979997,19314.0,19313.0,0.43198947]
[1664635788100,1.43979997,19314.0,19313.0,0.35298947]
[1664635789092,1.43979997,19314.0,19313.0,0.43198947]
[1664635790210,1.43979997,19314.0,19313.0,0.35298947]
[1664635790894,1.43979997,19314.0,19313.0,0.43198947]
[1664635792289,1.43979997,19314.0,19313.0,0.35298947]
[1664635793195,1.43979997,19314.0,19313.0,0.43198947]
[1664635794294,1.73048981,19314.0,19313.0,0.35298947]
[1664635794957,1.73048981,19314.0,19313.0,0.43198947]
[1664635795380,1.73048981,19314.0,19313.0,0.43192413]
[1664635795381,1.43979997,19314.0,19313.0,0.43192413]
[1664635796281,1.43979997,19314.0,19313.0,0.35292413]
[1664635796851,1.43979997,19314.0,19313.0,0.43192413]
[1664635797072,1.88813687,19314.0,19313.0,0.43192413]
[1664635797292,2.1992744,19314.0,19313.0,0.43192413]
[1664635797498,1.7509375,19314.0,19313.0,0.43192413]
[1664635798272,1.7509375,19314.0,19313.0,0.35292413]
[1664635798464,1.43979997,19314.0,19313.0,0.35292413]
[1664635798904,1.43979997,19314.0,19313.0,0.43192413]
[1664635800138,1.43979997,19314.0,19313.0,0.35292413]
[1664635800371,1.08190697,19314.0,19313.0,0.35292413]
[1664635800634,1.43979997,19314.0,19313.0,0.35292413]
[1664635801077,1.43979997,19314.0,19313.0,0.43192413]
[1664635801726,1.08495547,19314.0,19313.0,0.43603271]
[1664635801967,1.44284847,19314.0,19313.0,0.43603271]
[1664635802199,1.44284847,19314.0,19313.0,0.35703271]
[1664635802836,1.44284847,19314.0,19313.0,0.35292413]
[1664635803076,1.44284847,19314.0,19313.0,0.43192413]
[1664635804091,1.44284847,19314.0,19313.0,0.35292413]
[1664635804911,1.08495547,19314.0,19313.0,0.43192413]
[1664635805127,1.44284847,19314.0,19313.0,0.43192413]
[1664635805545,1.08495547,19314.0,19313.0,0.43192413]
[1664635805751,1.44284847,19314.0,19313.0,0.43192413]
[1664635806284,1.44284847,19314.0,19313.0,0.35292413]
[1664635806974,1.44284847,19314.0,19313.0,0.43192413]
[1664635808171,1.44284847,19314.0,19313.0,0.35292413]
[1664635808944,1.44284847,19314.0,19313.0,0.43192413]
[1664635809121,1.73386104,19314.0,19313.0,0.43192413]
[1664635809361,1.73386104,19314.0,19313.0,0.45049383]
[1664635810166,1.73386104,19314.0,19313.0,0.37149383]
[1664635811040,1.73386104,19314.0,19313.0,0.45049383]